Cogmind - Beta 15 *** ADVENTURER MODE // 2025.06.09 @ 15:50:56 Player: triibiis Result: Destroyed by Y-45 Defender with Beam Rifle Performance ------------- Evolutions (2) 1000 Regions Visited (3) 600 Robots Destroyed (90) 450 Value Destroyed (2495) 2495 Prototype IDs (4) 80 Alien Tech Used (0) 0 Bonus (0) 0 TOTAL SCORE: 4625 Bonus ------- None Cogmind --------- Core Integrity 0/550 Matter 198/300 Energy 100/100 System Corruption 10% Temperature Cool (27) Movement Core (350) Ox6 Location -8/Materials Parts ------- > --- POWER (2) -------- (None) > --- PROPULSION (3) --- (None) > --- UTILITY (3) ------ Large Storage Unit Visual Processing Unit > --- WEAPON (3) ------- (None) > --- INVENTORY (15) --- Aluminum Leg Aluminum Leg Armored Wheel Armored Wheel Visual Processing Unit ECM Suite Trap Extractor (0/4) Peak State ------------ > --- POWER ------------ Nuclear Core > --- PROPULSION ------- Improved Aluminum Leg Carbon-fiber Leg VSS Leg > --- UTILITY ---------- Large Storage Unit Visual Processing Unit Hacking Suite > --- WEAPON ----------- Improved EM Shotgun Shock Bomb Launcher Mini Grenade Launcher > --- INVENTORY -------- Aluminum Leg Aluminum Leg Aluminum Leg Aluminum Leg Visual Processing Unit ECM Suite Trap Extractor EM Shotgun EM Shotgun Shock Rifle Shock Rifle EMP Blaster Mining Laser [Rating: 27] Favorites ----------- Power Light Ion Engine Engine Light Ion Engine Power Core Light Nuclear Core Propulsion Aluminum Leg Treads Light Treads Leg Aluminum Leg Wheel Armored Wheel Utility Large Storage Unit Storage Large Storage Unit Processor Visual Processing Unit Hackware Hacking Suite Weapon Heavy EM Pulse Gun Energy Gun Heavy EM Pulse Gun Energy Cannon Advanced Beam Cannon Ballistic Gun Assault Rifle Ballistic Cannon Improved Light Cannon Launcher Mini Grenade Launcher Special Weapon Mining Laser Special Melee Weapon Datajack Build | -11 -10 -9 -8 ------- Run | Yrd Mat Mat Mat Slots Evolved 4 | . . 2 2 Power 1 | . . . 1 Propulsion 1 | . . 1 . Utility 1 | . . . 1 Weapon 1 | . . 1 . Parts Attached 52 | 8 10 15 19 Power 5 | 1 . 3 1 Engine 3 | 1 . 2 . Core 2 | . . 1 1 Reactor . | . . . . Propulsion 18 | 4 . 4 10 Treads 2 | 2 . . . Leg 10 | 2 . 3 5 Wheel 6 | . . 1 5 Hover . | . . . . Flight . | . . . . Utility 5 | 1 2 1 1 Device . | . . . . Storage 3 | 1 1 1 . Processor 1 | . 1 . . Hackware 1 | . . . 1 Protection . | . . . . Artifact . | . . . . Weapon 24 | 2 8 7 7 Energy Gun 13 | 1 5 3 4 Energy Cannon 1 | . . 1 . Ballistic Gun 1 | 1 . . . Ballistic Cannon 2 | . 1 1 . Launcher 4 | . 1 1 2 Special Weapon 1 | . . . 1 Impact Weapon . | . . . . Slashing Weapon . | . . . . Piercing Weapon . | . . . . Special Melee Weapon 2 | . 1 1 . Unidentified Prototypes 2 | . 1 1 . Corrupted Parts 3 | . . . 3 System Corruption 10 | . . . 10 Parts Lost 29 | . 1 8 20 Power 4 | . . 2 2 Propulsion 9 | . . 2 7 Utility 1 | . . . 1 Weapon 15 | . 1 4 10 Highest Loss Streak 11 | . 1 4 11 To Critical Strikes . | . . . . Average Backups 8 | 1 6 8 10 Power . | . 1 . . Propulsion 1 | . 2 1 3 Utility 2 | . . 2 3 Weapon 3 | . 2 4 3 Tool/Special . | . . . . Unused Backups 9 | . 2 4 3 Power . | . . . . Propulsion 1 | . . 1 . Utility 3 | . . . 3 Weapon 5 | . 2 3 . Tool/Special . | . . . . Average Slot Usage (%) 84 | . 90 83 68 Engine 8 | . 14 7 1 Core 2 | . . 3 3 Leg 20 | . 28 18 14 Storage 11 | . 14 11 9 Processor 9 | . 6 11 9 Energy Gun 14 | . 17 13 11 Energy Cannon 4 | . . 7 . Ballistic Cannon 3 | . . 5 . Launcher 5 | . 6 4 7 Peak Build Rating 27 | 6 11 16 27 Average Rating 12 | 4 8 13 17 On Entrance 8 | . 6 11 15 Naked Turns . | . . . . Heaviest Build 96 | 11 30 96 39 Greatest Support 40 | 40 20 30 40 Greatest Overweight (x) 10 | . 1 10 9 Average Overweight (x) 1 | . . 2 1 Largest Inventory Capacity 25 | 8 15 25 15 Average Capacity 14 | 6 13 15 15 Most Carried 13 | 4 13 12 13 Average Carried 8 | 1 6 8 10 Final Capacity 15 | 8 15 15 15 Final Carried 11 | 4 11 10 7 Class Distribution -------------------- 34% | Mutant 31% | Skirmisher 24% | Scavenger-Skirmisher 3% | Hacker-Mutant 3% | Hacker-Skirmisher Dominant Class ---------------- Mutant | -10/Materials Skirmisher | -9/Materials Hacker-Mutant | -8/Materials Resources | -11 -10 -9 -8 ----------- Run | Yrd Mat Mat Mat Matter Collected 1211 | 269 235 585 122 Remotely . | . . . . Salvage Created 2836 | . 581 1725 530 Parts 172 | . 34 115 23 Haulers Intercepted 1 | . . . 1 Recyclers Shooed 2 | . . 2 . Parts Field Recycled . | . . . . Retrieved Matter . | . . . . Parts Self-Destructed . | . . . . Prevented . | . . . . Kills | -11 -10 -9 -8 ------- Run | Yrd Mat Mat Mat Combat Hostiles Destroyed 68 | . 17 40 11 Guns 29 | . 14 13 2 Cannons 22 | . . 22 . AOE 17 | . 3 5 9 Classes Destroyed 11 | . 5 5 1 Worker 7 | . 3 4 . Builder 2 | . 1 1 . Hauler 1 | . . . 1 Recycler 2 | . . 1 1 Mechanic 1 | . . 1 . Operator 1 | . . 1 . Watcher 8 | . 3 4 1 Swarmer 16 | . 6 7 3 Grunt 40 | . 11 22 7 Duelist 1 | . . 1 . Sentry 11 | . . 10 1 Best Kill Streak 8 | . 7 6 8 Combat Bots Only 6 | . 6 5 4 Max Kills in Single Turn 2 | . 2 2 2 Gunslinging . | . . . . Exploded 2 | . 1 2 2 Melee . | . . . . Uniques/NPCs Destroyed . | . . . . Combat | -11 -10 -9 -8 -------- Run | Yrd Mat Mat Mat Hostile Shots Fired 430 | . 62 138 230 Missed 138 | . 26 47 65 Hits 292 | . 36 91 165 Melee 1 | . . 1 . Projectile 291 | . 36 90 165 Critical Strikes 8 | . . . 8 Damage Taken 3247 | . 327 880 2040 Core 755 | . 92 106 557 Absorbed by Shields . | . . . . Ignored by Resistances 938 | . 105 259 574 Core Remaining (%) 78 | 100 63 73 . Volleys Fired 133 | . 41 73 19 Largest 3 | . 2 3 3 Hottest 158 | . 90 158 133 Shots Fired 299 | . 68 193 38 Gun 157 | . 56 82 19 Cannon 104 | . 1 103 . Launcher 37 | . 11 8 18 Special 1 | . . . 1 Kinetic 85 | . 17 68 . Thermal 42 | . 6 35 1 Explosive 30 | . 11 8 11 Electromagnetic 142 | . 34 82 26 Robot Hit Streak 18 | . 6 11 18 Robot Miss Streak 3 | . 2 3 1 Penetration Max . | . . . . Secondary Targets . | . . . . Shots Hit Robots 193 | . 44 117 32 Core Hits 130 | . 28 68 34 Critical Kills . | . . . . Critical Parts Destroyed 1 | . 1 . . Critical Strikes 7 | . 2 5 . Destroy 1 | . 1 . . Blast 3 | . . 3 . Corrupt 3 | . 1 2 . Melee Attacks . | . . . . Impact . | . . . . Slashing . | . . . . Piercing . | . . . . Sneak Attacks . | . . . . Combat Hostiles . | . . . . Follow-up Attacks . | . . . . Damage Inflicted 5336 | . 1204 2750 1382 Guns 1622 | . 574 765 283 Cannons 1365 | . . 1365 . Explosions 2284 | . 621 599 1064 Melee . | . . . . Ramming 41 | . 9 21 11 Kinetic 986 | . 114 872 . Thermal 1213 | . 213 750 250 Explosive 1398 | . 464 342 592 Electromagnetic 1698 | . 404 765 529 Impact . | . . . . Slashing . | . . . . Piercing . | . . . . Highest Corruption 10 | . . 1 10 Average Corruption 1 | . . 1 9 Corruption Purged . | . . . . Corruption Blocked . | . . . . Effects 15 | . . 10 5 Message Errors 3 | . . 2 1 Matter Fused 4 | . . 4 . Heat Flow Errors 2 | . . . 2 Energy Discharges 2 | . . 2 . Parts Rejected 2 | . . . 2 Data Loss (minor) 2 | . . 2 . Overload Shots . | . . . . Overflow Damage 109 | . 40 33 36 Projectiles . | . . . . Explosions 109 | . 40 33 36 Melee . | . . . . Knockbacks 6 | . . 6 . Impact . | . . . . Kinetic 6 | . . 6 . Secondary . | . . . . Self-Inflicted Damage 228 | . . 9 219 Shots 11 | . . 1 10 Rammed 6 | . . 6 . Targets Rammed 19 | . 2 11 6 Kicked 13 | . 2 5 6 Crushed . | . . . . Highest Temperature 439 | . 113 439 153 Average Temperature 81 | . 42 94 59 Received Heat Transfer 1644 | . 156 426 1062 Effects 4 | . . 4 . Shutdowns 1 | . . 1 . Energy Bleed 1 | . . 1 . Interference 2 | . . 2 . Siege Activations . | . . . . Martial Activations . | . . . . Shielding Activations . | . . . . Robots Disrupted . | . . . . Combat Hostiles . | . . . . Robots Corrupted . | . . . . Combat Hostiles . | . . . . Parts Fried 4 | . 1 1 2 Impact Corruptions . | . . . . Robots Melted . | . . . . Combat Hostiles . | . . . . Parts Melted 2 | . 1 . 1 Heat Transferred 2113 | . 375 1288 450 Parts Sabotaged . | . . . . Parts Stolen . | . . . . Parts Stripped . | . . . . Power Chain Reactions 9 | . 3 3 3 Alert | -11 -10 -9 -8 ------- Run | Yrd Mat Mat Mat Maximum Alert Level 1 | . 1 1 . Low Security (%) 94 | 100 95 93 100 Level 1 5 | . 4 6 . Level 2 . | . . . . Level 3 . | . . . . Level 4 . | . . . . Level 5 . | . . . . High Security . | . . . . Max Security . | . . . . Peak Influence 274 | . 232 274 124 Initial . | . . . . Average 50 | . 60 47 56 Influence Increases 2332 | . 674 1271 387 Destroy 0b10 Robot/C 1360 | . 340 800 220 Destroy 0b10 Robot/NC 110 | . 35 60 15 Destroy Leader 348 | . 66 238 44 Successful Hack 41 | . 28 13 . Disable Machine 90 | . 45 27 18 Destroy Structure 218 | . 70 88 60 Lose Combat Pursuer 165 | . 90 45 30 Influence Decreases 2332 | . 674 1271 387 Time Decay 2085 | . 664 1211 210 Lost Part 247 | . 10 60 177 Squads Dispatched 15 | . 4 9 2 Investigation 11 | . 4 6 1 Extermination . | . . . . Reinforcement 4 | . . 3 1 Assault . | . . . . Garrison . | . . . . Intercept . | . . . . Searches Triggered . | . . . . Construction Impeded 2 | . . 1 1 Haulers Reinforced . | . . . . Active Scanning Responses . | . . . . Cargo Convoy Interrupts . | . . . . Stealth | -11 -10 -9 -8 --------- Run | Yrd Mat Mat Mat Distress Signals 8 | . . 5 3 Communications Jammed . | . . . . Distress Signals . | . . . . Times Spotted 104 | . 27 52 25 Peak Tracking Total 11 | . 3 3 11 Tactical Retreats 8 | . 3 3 2 Traps | -11 -10 -9 -8 ------- Run | Yrd Mat Mat Mat Traps Triggered 5 | . 2 3 . Indirectly . | . . . . Trap Hack Attempts . | . . . . Triggered . | . . . . Disarmed . | . . . . Reprogrammed . | . . . . Reused . | . . . . Traps Extracted . | . . . . Installed . | . . . . Triggered . | . . . . Machines | -11 -10 -9 -8 ---------- Run | Yrd Mat Mat Mat Machines Disabled 10 | . 5 3 2 Max in Single Turn 3 | . 3 1 1 Machines Repaired . | . . . . Machines Dismantled . | . . . . Machines Sabotaged . | . . . . Overloaded Fab Kills . | . . . . Hacking | -11 -10 -9 -8 --------- Run | Yrd Mat Mat Mat Machines Accessed 14 | . 7 6 1 Terminals 13 | . 7 5 1 Fabricators . | . . . . Repair Stations . | . . . . Recycling Units . | . . . . Scanalyzers 1 | . . 1 . Garrison Access . | . . . . Total Hacks 60 | . 31 25 4 Successful 21 | . 11 10 . Failed 39 | . 20 15 4 Catastrophic 8 | . 5 3 . Database Lockouts . | . . . . Manual 38 | . 16 18 4 Terminals 58 | . 31 23 4 Fabricators . | . . . . Repair Stations . | . . . . Recycling Units . | . . . . Scanalyzers 2 | . . 2 . Garrison Access . | . . . . Terminal Hacks 19 | . 11 8 . Record 4 | . 3 1 . Robot Analysis 2 | . 1 1 . Prototype ID Bank 1 | . 1 . . Level Access Points 2 | . 1 1 . Branch Access Points 2 | . 1 1 . Emergency Access Points 2 | . 1 1 . Terminal Index 1 | . 1 . . Recall Investigation 1 | . 1 . . Hauler Manifests 1 | . . 1 . Zone Layout 3 | . 1 2 . Fabricator Hacks . | . . . . Repair Station Hacks . | . . . . Recycling Unit Hacks . | . . . . Scanalyzer 2 | . . 2 . Insert Component 1 | . . 1 . Analyze 1 | . . 1 . Garrison Access Hacks . | . . . . Unauthorized Hacks . | . . . . Terminals . | . . . . Fabricators . | . . . . Repair Stations . | . . . . Recycling Units . | . . . . Scanalyzers . | . . . . Garrison Access . | . . . . Data Cores Recovered . | . . . . Used . | . . . . Hacking Detections 14 | . 7 6 1 Full Trace Events 13 | . 7 5 1 Feedback Events . | . . . . Feedback Blocked . | . . . . Robot Schematics Acquired . | . . . . Robots Built . | . . . . Authchips . | . . . . Time . | . . . . Total Robot Build Rating . | . . . . Part Schematics Acquired 1 | . . 1 . Parts Built . | . . . . Authchips . | . . . . Time . | . . . . Total Part Build Rating . | . . . . Parts Repaired . | . . . . Time . | . . . . Parts Recycled . | . . . . Recycled Matter . | . . . . Retrieved Matter . | . . . . Retrieved Components . | . . . . Parts Scanalyzed 1 | . . 1 . Part Schematics Acquired 1 | . . 1 . Parts Damaged . | . . . . Bothacking | -11 -10 -9 -8 ------------ Run | Yrd Mat Mat Mat Used RIF Installer . | . . . . Robots Hacked . | . . . . Non-combat . | . . . . Combat . | . . . . Robot Hacks Applied . | . . . . Relay Couplers Released . | . . . . Fabnet Peak Effective % . | . . . . Robots Rewired . | . . . . Allies Hacked . | . . . . Hacks Repelled . | . . . . Allies | -11 -10 -9 -8 -------- Run | Yrd Mat Mat Mat Total Allies . | . . . . Largest Group . | . . . . Highest-Rated Group . | . . . . Highest-Rated Ally . | . . . . Total Orders . | . . . . Ally Attacks . | . . . . Total Damage . | . . . . Kills . | . . . . Allies Corrupted . | . . . . Allies Melted . | . . . . Intel | -11 -10 -9 -8 ------- Run | Yrd Mat Mat Mat Active Infowar (turns) 5400 | . 754 4133 513 Optics 5400 | . 754 4133 513 Robot Analysis Total 2 | . 1 1 . Derelict Logs Recovered . | . . . . Drone Launches . | . . . . Drone Recoveries . | . . . . Exploration | -11 -10 -9 -8 ------------- Run | Yrd Mat Mat Mat Turns Passed 6526 | 120 1760 4133 513 Spaces Moved 2876 | 77 970 1585 244 Core 215 | 2 . 195 18 Treads 28 | 28 . . . Legs 2500 | 47 970 1336 147 Wheels 133 | . . 54 79 Hover . | . . . . Flight . | . . . . Fastest Speed 50 | 50 120 115 90 Average Speed 206 | 132 166 241 158 Slowest Speed 550 | 160 190 550 500 Overloaded Moves . | . . . . Propulsion Burnouts . | . . . . Robots Hopped . | . . . . Potential Cave-ins 2 | . . 2 . Cave-ins Triggered . | . . . . Exploration Rate (%) 56 | 5 95 97 29 Regions Visited 3 Branch Regions . Pre-discovered Areas . | . . . . Known Exits Taken 2 | . 1 1 . Unknown Exits Taken 1 | 1 . . . Scrap Searched . | . . . . Spaces Dug . | . . . . Terrain Destroyed 231 | . 70 95 66 Melee . | . . . . Projectile 3 | . . 3 . AOE 228 | . 70 92 66 Terrain Rammed . | . . . . Walls Destroyed . | . . . . Machines Disabled . | . . . . Actions | -11 -10 -9 -8 --------- Run | Yrd Mat Mat Mat Total 3180 | 92 1048 1712 328 Wait 38 | . . . 38 Move 2873 | 76 969 1584 244 Hop . | . . . . Pick Up 31 | 5 11 14 1 Fast Attach 33 | 8 9 10 6 Attach 20 | . 3 8 9 Detach 2 | . 2 . . Swap 8 | . . 3 5 Drop 23 | 3 11 9 . Fire 133 | . 41 73 19 Melee . | . . . . Ram 6 | . . 6 . Kick 13 | . 2 5 6 Crush . | . . . . Escape Stasis . | . . . . Rewire . | . . . . Trap . | . . . . Miscellaneous . | . . . . Route ------- -11/Scrapyard -10/Materials (discovered 5 exits: *Mat x3 / *Min / [*Sub]) -9/Materials (discovered 4 exits: *Mat x3 / *Min) -8/Materials History --------- Turn | Location | Event 2 | -11/Scrapyard | Met Revision 17 26 | -11/Scrapyard | Discovered new exit (range 16) 121 | -11/Scrapyard | Entered Materials 312 | -10/Materials | Build established: Mutant 319 | -10/Materials | Identified exit to Mines 402 | -10/Materials | Discovered new exit (range 13) 1189 | -10/Materials | Discovered new exit (range 8) 1532 | -10/Materials | Identified exit to Materials 1591 | -10/Materials | Discovered new exit (range 8) 1881 | -10/Materials | Entered another Materials area 1881 | -9/Materials | Evolved 2 slots: Propulsion x1, Weapon x1 2140 | -9/Materials | Identified exit to Materials 2227 | -9/Materials | Build established: Skirmisher 2602 | -9/Materials | Identified exit to Mines 3232 | -9/Materials | Lost 4 parts (1p1n2w) 3485 | -9/Materials | Build established: Mutant 3798 | -9/Materials | Build established: Skirmisher 4712 | -9/Materials | Build established: Scavenger-Skirmisher 6014 | -9/Materials | Entered another Materials area 6014 | -8/Materials | Evolved 2 slots: Power x1, Utility x1 6304 | -8/Materials | Core integrity fell below 50% 6349 | -8/Materials | Lost 11 parts (1p4n6w) 6420 | -8/Materials | System corruption reached 10% 6514 | -8/Materials | Core integrity fell below 20% 6527 | -8/Materials | Destroyed by Y-45 Defender with Beam Rifle Last Messages --------------- T-07 Excavator is excavating. W-25 Informer distress signal alerts nearby ally. System corrupted: Arm. Wheel rejected. EM Shotgun destroyed. System corrupted: Arm. Wheel rejected. W-25 Informer distress signal alerts nearby ally. Critical hit (Burn: +37). Mining Laser destroyed. Arm. Wheel destroyed. Kicked Y-45 Defender out of the way. Kicked Y-45 Defender. Kicked Y-45 Defender out of the way. Kicked Y-45 Defender. System corrupted: Heat flow error (+106). Kicked Y-45 Defender out of the way. Aluminum Leg destroyed. Hacking Suite destroyed. Critical hit (Burn: +37). Map ----- +----------------------------------------------------+ | ??????????????????????????????####### ########## | | ????????????????????????????????????# #????### | | ????????????????????????????????????# #??????### | | ??????????????????????? ??????????# #????????? | | ??????????????????????? ??????????# #????????? | | ??????????????????????# ??????????# #????????? | | ??????????????????????# #?????????# #????????? | | ??????????????????????# #?????????# #????????? | | ??????????????????????# #?????????# #????????? | | ??????????????????????# #?????????# #????????? | | ??????????????????????+ +?????????# #????????? | | ??????????????????????# #?????????# #????????? | | ??????????????????????# #?????????# #????????? | | ??????????????????????#k #?????????# #????????? | | ??????????????????????# #?????????# #????????? | | ?????????#+############ #?????????# #????????? | | ???????? #?????????#= #????????? | | ???????? +?????????# #????????? | | ????????? w #????????## ##???????? | | ?????????????# ########## #####+### | | ?????????????# k | | ?????????????# ##/###/#### | | ??????????????????# Yg # = | | ??????????????????# " Y Y ####+### ######### | | ??????????????????# T YYg #?? ?## ##???????? | | ??????????????????# " @ #?? ??# #????????? | | ??????????????????# """" # ?# #????????? | | ??????????????????# """" ## """ ?# #????????? | | ??????????????????# """" ## """ ## #????????? | | ??????????????????# ## """ ## #????????? | | ??????????????????############ ## #????????? | | ?????????????????????????????#######? ????????? | | ????????????????????????????????????? ????????? | | ????????????????????????????????????? """???????? | | ????????????????????????????????????? """???????? | | ????????????????????????????????????? "?????????? | | ????????????????????????????????????? ?????????? | | ????????????????????????????????????? ?????????? | | ????????????????????????????????????? ??????????? | | ?????????????????????????????????????????????????? | | ?????????????????????????????????????????????????? | | ?????????????????????????????????????????????????? | | ?????????????????????????????????????????????????? | | ?????????????????????????????????????????????????? | | ?????????????????????????????????????????????????? | | ?????????????????????????????????????????????????? | | ?????????????????????????????????????????????????? | | ?????????????????????????????????????????????????? | | ?????????????????????????????????????????????????? | | ?????????????????????????????????????????????????? | +----------------------------------------------------+ Best States ------------- Heat Dissipation 31 Energy Generation 19 Energy Capacity 390 Matter Stores 300 Matter Capacity 300 Sight Range 18 Terrain Scan Density 10 Resistance: KI 20 Resistance: TH 20 Resistance: EX 20 Resistance: EM 20 Resistance: I 20 Resistance: S 20 Resistance: P 20 Evasion (%) 55 Recoil Reduction 2 Offensive Hacking 20 Item Schematics ----------------- Aluminum Leg | -9/Materials | Scanalyzed Robot Schematics ------------------ None Fabricated ------------ Nothing Repaired ---------- Nothing Alien Tech Used ----------------- None Achievements -------------- None Challenges ------------ None Game ------ Seed DirtyTargetExpander Manual? 0 Play Time 00:37:27 Cumulative 13.1 hours Start 2025.06.09 @ 14:48:31 End 2025.06.09 @ 15:50:56 Sessions 5 Manual Loads 0 Difficulty Adventurer Special Mode None Game No. 36 Rogue 0 Adventurer 36 Explorer 0 Win Type - Total 0 Types 0/0/0/0/0/0/0/0/0/0 Lore% 15 Gallery% 15 Achievement% 17 Wizard Run 0 Options --------- Layout 1 ASCII 0 Keyboard 0 Movement Arrows Keybinds 0 Fullscreen 1 Font 36/Smallcaps Map View 50x43 Zoom Use 0% Tactical HUD 0 Map Filters NONE Filters NONE Steam 1 RUN: 112e704d-4b9f-4ec8-b00f-18a53c79a42e